[Event "POL-chT 2 Liga 2019"]
[Site "Poronin"]
[Date "2019.09.14"]
[Round "8.14"]
[White "Grela, Kacper"]
[Black "Jakubiec, Artur"]
[Result "1-0"]
[ECO "A59"]
[WhiteElo "2346"]
[BlackElo "2472"]
[Annotator "ChessBase"]
[PlyCount "81"]
[EventDate "2019.09.07"]
[EventType "team-tourn"]
[EventCountry "POL"]
[SourceTitle "playchess.com"]
[Source "ChessBase"]
[SourceQuality "1"]
[TimeControl "40/5400+30:1800+30"]

1. d4 {[%emt 0:00:00]} Nf6 2. c4 {[%emt 0:00:00]} c5 {[%emt 0:01:37]} 3. d5 {[%emt 0:00:02]} b5 {[%emt 0:00:10]} 4. cxb5 {[%emt 0:01:11]} a6 {[%emt 0:00:06]} 5. bxa6 {[%emt 0:00:13]} Bxa6 {[%emt 0:00:08]} 6. Nc3 {[%emt 0:00:28]} g6 {[%emt 0:00:11]} 7. e4 {[%emt 0:01:22]} Bxf1 {[%emt 0:00:06]} 8. Kxf1 {[%emt 0:00:08]} d6 {[%emt 0:00:04]} 9. g3 {[%emt 0:00:11]} Bg7 {[%emt 0:00:07]} 10. Kg2 {[%emt 0:00:28]} O-O {[%emt 0:00:07]} 11. Nf3 {[%emt 0:00:48]} Nbd7 {[%emt 0:01:17]} 12. a4 {[%emt 0:02:53]} Qb6 {[%emt 0:07:31]} 13. Qc2 {[%emt 0:06:05]} Qb7 {[%emt 0:10:26]} 14. Re1 {[%emt 0:06:55]} Rfb8 {[%emt 0:05:29]} 15. Nb5 {[%emt 0:15:02]} Nb6 {[%emt 0:05:02]} 16. Ra3 {[%emt 0:05:49]} Nfd7 {[%emt 0:13:42]} 17. b3 {[%emt 0:07:28]} c4 {[%emt 0:01:04]} 18. Nbd4 {[%emt 0:11:43]} cxb3 {[%emt 0:12:55]} 19. Rxb3 {[%emt 0:00:08]} Ra6 20. a5 Rxa5 {[%emt 0:03:07]} 21. Nc6 {[%emt 0:01:29]} Ra4 {[%emt 0:00:12]} 22. Be3 {[%emt 0:01:21]} Re8 {[%emt 0:11:41]} 23. Reb1 {[%emt 0:00:48]} Ra6 {[%emt 0:01:13]} 24. Rb4 Kf8 25. Rb5 {[%emt 0:02:15]} Rea8 {[%emt 0:03:43]} 26. Qb3 {[%emt 0:04:43]} Ra3 {[%emt 0:00:16]} 27. Rxb6 {[%emt 0:00:15]} Nxb6 28. Qxb6 {[%emt 0:00:08]} Qxb6 {[%emt 0:00:14]} 29. Rxb6 {[%emt 0:00:09]} R3a4 {[%emt 0:00:40]} 30. Rb7 {[%emt 0:02:05]} Re8 {[%emt 0:03:21]} 31. e5 {[%emt 0:02:07]} dxe5 {[%emt 0:01:27]} 32. Nxe7 {[%emt 0:02:45]} Rc4 {[%emt 0:03:44]} 33. Nc6 {[%emt 0:03:38]} h6 {[%emt 0:00:56]} 34. Nd2 {[%emt 0:00:22]} Rc2 {[%emt 0:01:27]} 35. Nb4 {[%emt 0:06:58]} Rb2 {[%emt 0:01:46]} 36. d6 {[%emt 0:01:01]} Ra8 {[%emt 0:03:44]} 37. d7 {[%emt 0:02:14]} Bf6 {[%emt 0:01:22]} 38. Rc7 {[%emt 0:00:45]} Kg7 {[%emt 0:01:46]} 39. Rc8 {[%emt 0:00:38]} Ra3 {[%emt 0:02:33]} 40. Nc4 {[%emt 0:02:33]} Rxe3 {[%emt 0:01:27]} 41. Nxe3 {[%emt 0:30:05]} 1-0

[Event "POL-chT 2 Liga 2019"]
[Site "Poronin"]
[Date "2019.09.14"]
[Round "8.15"]
[White "Tymrakiewicz, Rafal"]
[Black "Komendecki, Jacek"]
[Result "1-0"]
[ECO "B27"]
[WhiteElo "2257"]
[BlackElo "2073"]
[Annotator "NA"]
[PlyCount "68"]
[EventDate "2019.09.07"]
[EventType "team-tourn"]
[EventCountry "POL"]
[SourceTitle "playchess.com"]
[Source "ChessBase"]
[SourceQuality "1"]
[TimeControl "40/5400+30:1800+30"]

1. e4 {[%emt 0:00:00]} c5 {[%emt 0:00:26]} 2. Nf3 {[%emt 0:05:36]} g6 {[%emt 0:01:59]} 3. d4 {[%emt 0:01:34]} cxd4 {[%emt 0:00:02]} 4. c3 {[%emt 0:00:03]} Bg7 {[%emt 0:00:49]} 5. Bc4 {[%emt 0:00:08]} d3 {[%emt 0:04:05]} 6. Qb3 {[%emt 0:01:49]} e6 {[%emt 0:00:59]} 7. O-O {[%emt 0:00:13]} Nc6 {[%emt 0:02:46]} 8. Bxd3 {[%emt 0:00:05]} Nge7 {[%emt 0:08:24]} 9. Bg5 {[%emt 0:01:57]} O-O {[%emt 0:14:07]} 10. Na3 {[%emt 0:04:02]} d5 {[%emt 0:09:40]} 11. Rad1 {[%emt 0:08:53]} Qc7 {[%emt 0:17:06]} 12. Rfe1 {[%emt 0:08:08]} a6 {[%emt 0:00:47]} 13. exd5 {[%emt 0:17:04]} Nxd5 {[%emt 0:00:07]} 14. Qa4 {[%emt 0:02:05]} f6 {[%emt 0:20:10]} 15. Bc1 {[%emt 0:01:03]} Bd7 {[%emt 0:00:14]} 16. Qh4 {[%emt 0:01:44]} b5 {[%emt 0:01:07]} 17. Be4 {[%emt 0:13:29]} Nce7 {[%emt 0:00:50]} 18. Nc2 {[%emt 0:01:19]} Rae8 {[%emt 0:00:20]} 19. a3 {[%emt 0:02:19]} Bc8 {[%emt 0:07:27]} 20. Bh6 {[%emt 0:08:41]} Qb6 {[%emt 0:00:17]} 21. Nb4 {[%emt 0:05:10]} Bb7 {[%emt 0:02:02]} 22. Rd2 {[%emt 0:08:31]} a5 {[%emt 0:04:36]} 23. Bxg7 {[%emt 0:00:46]} Kxg7 {[%emt 0:00:02]} 24. Nxd5 {[%emt 0:00:47]} Nxd5 {[%emt 0:00:46]} 25. Red1 {[%emt 0:00:28]} Rd8 {[%emt 0:01:06]} 26. Bb1 {[%emt 0:01:08]} e5 {[%emt 0:00:32]} 27. Ne1 {[%emt 0:02:39]} Nf4 {[%emt 0:00:25]} 28. Rd7+ {[%emt 0:00:15]} Rxd7 {[%emt 0:02:16]} 29. Rxd7+ {[%emt 0:00:03]} Rf7 {[%emt 0:00:06]} 30. Rxf7+ {[%emt 0:00:45]} Kxf7 {[%emt 0:00:02]} 31. Qxh7+ {[%emt 0:00:18]} Ke6 {[%emt 0:00:48]} 32. Bxg6 {[%emt 0:01:11]} Qd8 {[%emt 0:01:02]} 33. Bf5+ {[%emt 0:00:52]} Kd6 {[%emt 0:00:02]} 34. Qxb7 {[%emt 0:00:20]} Ne6 1-0

[Event "POL-chT 2 Liga 2019"]
[Site "Poronin"]
[Date "2019.09.14"]
[Round "8.16"]
[White "Kowalak, Piotr"]
[Black "Szoen, Dariusz"]
[Result "1/2-1/2"]
[ECO "B91"]
[WhiteElo "2108"]
[BlackElo "2415"]
[Annotator "NA"]
[PlyCount "31"]
[EventDate "2019.09.07"]
[EventType "team-tourn"]
[EventCountry "POL"]
[SourceTitle "playchess.com"]
[Source "ChessBase"]
[SourceQuality "1"]
[TimeControl "40/5400+30:1800+30"]

1. e4 {[%emt 0:00:00]} c5 {[%emt 0:00:31]} 2. Nf3 {[%emt 0:00:00]} d6 {[%emt 0:00:05]} 3. d4 {[%emt 0:00:00]} cxd4 {[%emt 0:00:03]} 4. Nxd4 {[%emt 0:00:00]} Nf6 {[%emt 0:00:04]} 5. Nc3 {[%emt 0:00:02]} a6 {[%emt 0:00:04]} 6. g3 {[%emt 0:00:06]} e5 {[%emt 0:00:20]} 7. Nb3 {[%emt 0:00:08]} Be7 {[%emt 0:02:55]} 8. Bg2 {[%emt 0:00:08]} Nbd7 {[%emt 0:03:02]} 9. a4 {[%emt 0:00:51]} O-O {[%emt 0:04:32]} 10. O-O {[%emt 0:00:06]} Qc7 {[%emt 0:06:43]} 11. Re1 {[%emt 0:00:27]} Nc5 {[%emt 0:01:45]} 12. Nd2 {[%emt 0:03:03]} Bg4 {[%emt 0:06:22]} 13. Bf3 {[%emt 0:03:07]} Bxf3 {[%emt 0:05:11]} 14. Nxf3 {[%emt 0:20:16]} Qc6 {[%emt 0:07:54]} 15. Bg5 {[%emt 0:03:55]} Ne6 {[%emt 0:04:24]} 16. Nd5 {[%emt 0:11:30]} 1/2-1/2

[Event "POL-chT 2 Liga 2019"]
[Site "Poronin"]
[Date "2019.09.14"]
[Round "8.17"]
[White "Gmaj, Krzysztof"]
[Black "Krawiec, Grzegorz"]
[Result "1-0"]
[ECO "A40"]
[WhiteElo "2120"]
[BlackElo "1792"]
[Annotator "NA"]
[PlyCount "65"]
[EventDate "2019.09.07"]
[EventType "team-tourn"]
[EventCountry "POL"]
[SourceTitle "playchess.com"]
[Source "ChessBase"]
[SourceQuality "1"]
[TimeControl "40/5400+30:1800+30"]

1. d4 {[%emt 0:00:00]} e6 {[%emt 0:02:02]} 2. Nf3 {[%emt 0:00:48]} Nf6 {[%emt 0:01:17]} 3. Bf4 {[%emt 0:00:13]} d5 {[%emt 0:01:24]} 4. e3 {[%emt 0:00:14]} c5 {[%emt 0:00:58]} 5. c3 {[%emt 0:00:06]} Qb6 {[%emt 0:04:12]} 6. Qb3 {[%emt 0:00:27]} Bd7 {[%emt 0:12:53]} 7. h3 {[%emt 0:03:04]} c4 {[%emt 0:01:05]} 8. Qc2 {[%emt 0:00:28]} Bd6 {[%emt 0:00:21]} 9. Nbd2 {[%emt 0:02:55]} Nh5 {[%emt 0:04:15]} 10. Bxd6 {[%emt 0:04:57]} Qxd6 {[%emt 0:00:07]} 11. Ne5 {[%emt 0:04:31]} O-O {[%emt 0:09:26]} 12. g4 {[%emt 0:05:47]} Nf6 {[%emt 0:00:16]} 13. Bg2 {[%emt 0:02:24]} Nc6 {[%emt 0:00:35]} 14. f4 {[%emt 0:02:08]} b5 {[%emt 0:02:40]} 15. a3 {[%emt 0:00:33]} a5 {[%emt 0:00:59]} 16. O-O {[%emt 0:08:32]} b4 {[%emt 0:04:09]} 17. e4 {[%emt 0:02:34]} bxc3 {[%emt 0:12:25]} 18. bxc3 {[%emt 0:00:54]} Ne8 {[%emt 0:01:12]} 19. Nxd7 {[%emt 0:06:30]} Qxd7 {[%emt 0:00:27]} 20. f5 {[%emt 0:00:12]} Rb8 {[%emt 0:07:07]} 21. fxe6 {[%emt 0:07:48]} fxe6 {[%emt 0:02:38]} 22. Rxf8+ {[%emt 0:00:26]} Kxf8 {[%emt 0:00:06]} 23. exd5 {[%emt 0:00:13]} exd5 {[%emt 0:00:22]} 24. Qxh7 {[%emt 0:00:39]} Nf6 {[%emt 0:01:12]} 25. Rf1 {[%emt 0:00:29]} Ke8 {[%emt 0:06:54]} 26. Qg6+ {[%emt 0:03:05]} Kd8 {[%emt 0:00:23]} 27. g5 {[%emt 0:01:06]} Ng8 {[%emt 0:02:29]} 28. Rf7 {[%emt 0:03:05]} Nge7 {[%emt 0:00:06]} 29. Qxg7 {[%emt 0:00:32]} Rb2 {[%emt 0:00:09]} 30. Nf1 {[%emt 0:07:22]} Rb3 {[%emt 0:00:49]} 31. g6 {[%emt 0:00:52]} Rxc3 {[%emt 0:00:28]} 32. Qf8+ {[%emt 0:01:08]} Qe8 {[%emt 0:00:53]} 33. Bxd5 {[%emt 0:03:47]} 1-0

[Event "POL-chT 2 Liga 2019"]
[Site "Poronin"]
[Date "2019.09.14"]
[Round "8.18"]
[White "Karykowska, Anna"]
[Black "Kubicka, Anna"]
[Result "0-1"]
[ECO "B06"]
[WhiteElo "1895"]
[BlackElo "2225"]
[Annotator "NA"]
[PlyCount "92"]
[EventDate "2019.09.07"]
[EventType "team-tourn"]
[EventCountry "POL"]
[SourceTitle "playchess.com"]
[Source "ChessBase"]
[SourceQuality "1"]
[TimeControl "40/5400+30:1800+30"]

1. e4 {[%emt 0:00:00]} g6 {[%emt 0:00:24]} 2. d4 {[%emt 0:00:00]} Bg7 {[%emt 0:00:12]} 3. Nc3 {[%emt 0:00:38]} d6 {[%emt 0:00:08]} 4. f4 {[%emt 0:01:39]} Nf6 {[%emt 0:00:26]} 5. a3 {[%emt 0:00:27]} O-O {[%emt 0:00:21]} 6. Nf3 {[%emt 0:00:28]} c5 {[%emt 0:00:43]} 7. dxc5 {[%emt 0:01:25]} dxc5 {[%emt 0:03:19]} 8. Qxd8 {[%emt 0:00:13]} Rxd8 {[%emt 0:00:08]} 9. e5 {[%emt 0:00:27]} Nh5 {[%emt 0:01:05]} 10. Bc4 {[%emt 0:10:25]} Bh6 {[%emt 0:08:34]} 11. O-O {[%emt 0:09:10]} Nc6 {[%emt 0:04:10]} 12. Ne2 {[%emt 0:06:19]} Na5 {[%emt 0:06:21]} 13. Ba2 {[%emt 0:03:26]} b6 {[%emt 0:00:35]} 14. b4 {[%emt 0:12:53]} Ba6 {[%emt 0:08:09]} 15. Kf2 {[%emt 0:01:18]} cxb4 {[%emt 0:17:50]} 16. axb4 {[%emt 0:04:43]} Bxe2 {[%emt 0:07:42]} 17. Kxe2 Nc6 {[%emt 0:08:41]} 18. c3 {[%emt 0:05:38]} Nxf4+ {[%emt 0:03:15]} 19. Bxf4 {[%emt 0:00:33]} Bxf4 {[%emt 0:00:02]} 20. g3 {[%emt 0:05:59]} Bh6 {[%emt 0:04:12]} 21. b5 {[%emt 0:07:20]} Na5 {[%emt 0:00:33]} 22. Rad1 {[%emt 0:01:45]} e6 {[%emt 0:01:09]} 23. Rxd8+ {[%emt 0:02:29]} Rxd8 {[%emt 0:00:03]} 24. Rd1 {[%emt 0:00:13]} Rxd1 {[%emt 0:02:57]} 25. Kxd1 {[%emt 0:00:02]} Nb7 {[%emt 0:00:49]} 26. Nd4 {[%emt 0:04:07]} Bg7 {[%emt 0:03:36]} 27. Nc6 {[%emt 0:00:30]} Na5 {[%emt 0:07:20]} 28. Nxa5 {[%emt 0:07:17]} bxa5 {[%emt 0:00:15]} 29. Kc2 {[%emt 0:00:50]} Bxe5 {[%emt 0:00:13]} 30. Kd3 {[%emt 0:01:18]} Kf8 {[%emt 0:01:31]} 31. c4 {[%emt 0:00:51]} Ke7 {[%emt 0:03:41]} 32. c5 {[%emt 0:00:41]} Bc7 {[%emt 0:00:17]} 33. Bb3 {[%emt 0:03:37]} f5 {[%emt 0:00:37]} 34. Ke3 {[%emt 0:01:27]} Kf6 {[%emt 0:00:36]} 35. Kf3 {[%emt 0:02:45]} h6 {[%emt 0:00:36]} 36. Bc2 {[%emt 0:03:31]} Ke5 {[%emt 0:00:42]} 37. Bb3 {[%emt 0:00:22]} Kd4 {[%emt 0:03:12]} 38. b6 {[%emt 0:00:31]} axb6 {[%emt 0:00:04]} 39. cxb6 {[%emt 0:00:03]} Bxb6 {[%emt 0:00:03]} 40. Bxe6 {[%emt 0:00:00]} a4 {[%emt 0:00:00]} 41. h4 {[%emt 0:05:57]} a3 {[%emt 0:02:19]} 42. h5 {[%emt 0:02:35]} g5 {[%emt 0:00:46]} 43. Bg8 {[%emt 0:01:21]} Kc3 {[%emt 0:00:20]} 44. g4 {[%emt 0:00:15]} fxg4+ {[%emt 0:00:41]} 45. Kxg4 {[%emt 0:00:05]} Kb2 {[%emt 0:00:08]} 46. Kf5 {[%emt 0:00:29]} Be3 {[%emt 0:00:05]} 0-1

[Event "POL-chT 2 Liga 2019"]
[Site "Poronin"]
[Date "2019.09.14"]
[Round "8.19"]
[White "Wandzik, Wojciech"]
[Black "Bator, Robert"]
[Result "1/2-1/2"]
[ECO "B31"]
[WhiteElo "2409"]
[BlackElo "2358"]
[Annotator "NA"]
[PlyCount "68"]
[EventDate "2019.09.07"]
[EventType "team-tourn"]
[EventCountry "POL"]
[SourceTitle "playchess.com"]
[Source "ChessBase"]
[SourceQuality "1"]
[TimeControl "40/5400+30:1800+30"]

1. e4 {[%emt 0:00:00]} c5 {[%emt 0:00:00]} 2. Nf3 {[%emt 0:00:00]} Nc6 {[%emt 0:00:00]} 3. Bb5 {[%emt 0:00:00]} g6 {[%emt 0:00:18]} 4. O-O {[%emt 0:00:12]} Bg7 {[%emt 0:00:06]} 5. Re1 {[%emt 0:01:06]} Nf6 {[%emt 0:02:23]} 6. c3 {[%emt 0:08:28]} O-O {[%emt 0:00:18]} 7. h3 {[%emt 0:00:07]} Qb6 {[%emt 0:00:32]} 8. Na3 {[%emt 0:04:20]} d5 {[%emt 0:00:52]} 9. e5 {[%emt 0:01:55]} Ne8 {[%emt 0:01:20]} 10. d4 {[%emt 0:04:10]} cxd4 {[%emt 0:00:17]} 11. cxd4 {[%emt 0:00:06]} Nc7 {[%emt 0:00:07]} 12. Bf1 {[%emt 0:01:14]} Bf5 {[%emt 0:00:51]} 13. g4 {[%emt 0:07:42]} Be4 {[%emt 0:11:42]} 14. Nc4 {[%emt 0:01:05]} Qa6 {[%emt 0:22:50]} 15. Ncd2 {[%emt 0:32:39]} Bxf3 {[%emt 0:16:33]} 16. Nxf3 {[%emt 0:00:08]} Qb6 {[%emt 0:00:19]} 17. Be3 {[%emt 0:04:46]} f6 {[%emt 0:05:18]} 18. Qd2 {[%emt 0:02:00]} Ne6 {[%emt 0:01:24]} 19. Bg2 {[%emt 0:01:12]} fxe5 {[%emt 0:02:22]} 20. dxe5 {[%emt 0:09:35]} d4 {[%emt 0:00:07]} 21. Bh6 {[%emt 0:00:06]} Bxh6 {[%emt 0:02:42]} 22. Qxh6 {[%emt 0:00:05]} Qxb2 {[%emt 0:00:39]} 23. Rab1 {[%emt 0:00:11]} Qxa2 {[%emt 0:01:16]} 24. Rxb7 {[%emt 0:00:59]} Rf4 {[%emt 0:04:53]} 25. Rc1 {[%emt 0:03:08]} Ncd8 {[%emt 0:03:00]} 26. Rxe7 {[%emt 0:06:12]} Nf7 {[%emt 0:00:06]} 27. Rxf7 {[%emt 0:03:34]} Rxf7 {[%emt 0:00:15]} 28. Ng5 {[%emt 0:00:09]} Qxf2+ {[%emt 0:15:09]} 29. Kh1 {[%emt 0:00:02]} Nxg5 {[%emt 0:00:30]} 30. Bxa8 {[%emt 0:00:04]} Ne6 {[%emt 0:00:24]} 31. Bd5 {[%emt 0:00:14]} Kh8 {[%emt 0:00:57]} 32. Bxe6 {[%emt 0:05:47]} Qf3+ {[%emt 0:00:21]} 33. Kg1 {[%emt 0:00:19]} Qf2+ {[%emt 0:00:19]} 34. Kh1 {[%emt 0:00:03]} Qf3+ {[%emt 0:00:07]} 1/2-1/2

[Event "POL-chT 2 Liga 2019"]
[Site "Poronin"]
[Date "2019.09.14"]
[Round "8.20"]
[White "Marszalek, Maciej"]
[Black "Lizak, Jakub"]
[Result "1/2-1/2"]
[ECO "A04"]
[WhiteElo "2301"]
[BlackElo "2236"]
[Annotator "NA"]
[PlyCount "52"]
[EventDate "2019.09.07"]
[EventType "team-tourn"]
[EventCountry "POL"]
[SourceTitle "playchess.com"]
[Source "ChessBase"]
[SourceQuality "1"]
[TimeControl "40/5400+30:1800+30"]

1. Nf3 {[%emt 0:00:00]} g6 {[%emt 0:00:00]} 2. g3 {[%emt 0:00:00]} Bg7 {[%emt 0:00:00]} 3. Bg2 {[%emt 0:00:00]} d5 {[%emt 0:00:13]} 4. d4 {[%emt 0:00:27]} Nf6 {[%emt 0:00:05]} 5. O-O {[%emt 0:00:08]} O-O {[%emt 0:00:03]} 6. c4 {[%emt 0:00:11]} dxc4 {[%emt 0:00:03]} 7. Na3 {[%emt 0:00:09]} c3 {[%emt 0:00:03]} 8. bxc3 {[%emt 0:00:05]} c5 {[%emt 0:00:05]} 9. Re1 {[%emt 0:00:50]} Nc6 {[%emt 0:00:41]} 10. Bb2 {[%emt 0:04:56]} cxd4 {[%emt 0:00:17]} 11. cxd4 {[%emt 0:00:08]} Qa5 {[%emt 0:00:04]} 12. Nc4 {[%emt 0:03:21]} Qa6 {[%emt 0:00:11]} 13. Nfe5 {[%emt 0:07:20]} Be6 {[%emt 0:07:53]} 14. Nxc6 {[%emt 0:09:15]} bxc6 {[%emt 0:00:14]} 15. Ne5 {[%emt 0:00:25]} Rfc8 {[%emt 0:04:20]} 16. Qd3 {[%emt 0:09:12]} Qxd3 {[%emt 0:04:16]} 17. Nxd3 {[%emt 0:00:12]} Rab8 {[%emt 0:00:33]} 18. Ba3 {[%emt 0:00:51]} Nd7 {[%emt 0:11:08]} 19. e3 {[%emt 0:01:13]} Bc4 {[%emt 0:01:13]} 20. Nc5 {[%emt 0:02:31]} Nb6 {[%emt 0:02:44]} 21. Bh3 {[%emt 0:03:40]} f5 {[%emt 0:03:26]} 22. g4 {[%emt 0:03:49]} e6 {[%emt 0:00:12]} 23. Rec1 {[%emt 0:03:01]} Bd5 {[%emt 0:01:19]} 24. Na6 {[%emt 0:03:20]} Rb7 {[%emt 0:01:47]} 25. Nc5 {[%emt 0:03:00]} Rbb8 {[%emt 0:06:05]} 26. Na6 {[%emt 0:06:23]} Rb7 {[%emt 0:00:07]} 1/2-1/2

[Event "POL-chT 2 Liga 2019"]
[Site "Poronin"]
[Date "2019.09.14"]
[Round "8.21"]
[White "Duda, Lukasz"]
[Black "Brzeski, Maciej"]
[Result "0-1"]
[ECO "B24"]
[WhiteElo "2209"]
[BlackElo "2339"]
[Annotator "NA"]
[PlyCount "104"]
[EventDate "2019.09.07"]
[EventType "team-tourn"]
[EventCountry "POL"]
[SourceTitle "playchess.com"]
[Source "ChessBase"]
[SourceQuality "1"]
[TimeControl "40/5400+30:1800+30"]

1. e4 {[%emt 0:00:00]} c5 {[%emt 0:00:00]} 2. Nc3 {[%emt 0:00:00]} Nc6 {[%emt 0:00:00]} 3. d3 {[%emt 0:00:00]} g6 {[%emt 0:22:22]} 4. Be3 {[%emt 0:01:10]} Nd4 {[%emt 0:03:38]} 5. Qd2 {[%emt 0:06:41]} Bg7 {[%emt 0:00:11]} 6. Nce2 {[%emt 0:04:01]} d5 {[%emt 0:13:34]} 7. c3 {[%emt 0:06:32]} Ne6 {[%emt 0:07:09]} 8. f3 {[%emt 0:15:21]} Nf6 {[%emt 0:03:51]} 9. e5 {[%emt 0:02:26]} d4 {[%emt 0:01:43]} 10. Bf2 {[%emt 0:13:06]} Nd5 {[%emt 0:01:35]} 11. f4 {[%emt 0:07:22]} b6 {[%emt 0:09:51]} 12. cxd4 {[%emt 0:09:17]} cxd4 {[%emt 0:00:01]} 13. Nh3 {[%emt 0:03:30]} Bb7 {[%emt 0:04:31]} 14. Rg1 {[%emt 0:02:15]} Qd7 {[%emt 0:02:50]} 15. Rc1 {[%emt 0:08:24]} f6 {[%emt 0:02:13]} 16. exf6 {[%emt 0:02:53]} Bxf6 {[%emt 0:00:16]} 17. g4 {[%emt 0:00:38]} Ne3 {[%emt 0:01:18]} 18. Bxe3 {[%emt 0:00:47]} dxe3 {[%emt 0:00:01]} 19. Qxe3 {[%emt 0:01:26]} Bxb2 {[%emt 0:01:05]} 20. Rb1 {[%emt 0:05:16]} Bf6 {[%emt 0:01:07]} 21. Bg2 {[%emt 0:00:51]} Nd4 {[%emt 0:02:59]} 22. Kf1 {[%emt 0:02:58]} O-O-O {[%emt 0:10:48]} 23. Bxb7+ {[%emt 0:00:51]} Qxb7 {[%emt 0:00:48]} 24. Qe4 {[%emt 0:00:47]} Qxe4 {[%emt 0:02:14]} 25. dxe4 {[%emt 0:00:01]} Nf3 {[%emt 0:00:04]} 26. Rc1+ {[%emt 0:00:28]} Kb7 {[%emt 0:00:05]} 27. Rg3 {[%emt 0:03:50]} Nd2+ {[%emt 0:00:09]} 28. Kg2 {[%emt 0:00:08]} Nxe4 {[%emt 0:01:02]} 29. Re3 {[%emt 0:00:06]} Nd6 {[%emt 0:00:10]} 30. Ng3 {[%emt 0:01:52]} Rhe8 {[%emt 0:00:46]} 31. Rce1 {[%emt 0:00:51]} e5 {[%emt 0:00:40]} 32. fxe5 {[%emt 0:01:35]} Nc4 {[%emt 0:00:01]} 33. Rf3 {[%emt 0:00:19]} Rxe5 {[%emt 0:02:12]} 34. Rxe5 {[%emt 0:00:17]} Bxe5 {[%emt 0:00:02]} 35. Rf7+ {[%emt 0:00:15]} Ka6 {[%emt 0:01:39]} 36. Ne4 {[%emt 0:00:11]} Rd3 {[%emt 0:04:50]} 37. Nhg5 {[%emt 0:01:30]} Ra3 {[%emt 0:00:57]} 38. Rxh7 {[%emt 0:00:31]} Ne3+ {[%emt 0:00:26]} 39. Kf3 {[%emt 0:00:20]} Nd5+ {[%emt 0:00:04]} 40. Ke2 {[%emt 0:00:00]} Rxa2+ {[%emt 0:00:00]} 41. Nd2 {[%emt 0:13:49]} Nf6 {[%emt 0:03:43]} 42. Re7 {[%emt 0:04:48]} Nxg4 {[%emt 0:07:14]} 43. Ngf3 {[%emt 0:01:35]} Bf4 {[%emt 0:01:28]} 44. h3 {[%emt 0:01:32]} Ne5 {[%emt 0:01:42]} 45. Nxe5 {[%emt 0:05:40]} Rxd2+ {[%emt 0:00:08]} 46. Kf3 {[%emt 0:00:05]} Bxe5 {[%emt 0:00:24]} 47. Rxe5 {[%emt 0:00:09]} Rd6 {[%emt 0:00:12]} 48. Kg4 {[%emt 0:00:21]} b5 {[%emt 0:00:09]} 49. h4 {[%emt 0:00:10]} Kb6 {[%emt 0:00:13]} 50. Kg5 {[%emt 0:00:06]} a5 {[%emt 0:00:14]} 51. Re8 {[%emt 0:00:05]} a4 {[%emt 0:00:04]} 52. Rb8+ {[%emt 0:01:17]} Kc5 {[%emt 0:00:06]} 0-1

[Event "POL-chT 2 Liga 2019"]
[Site "Poronin"]
[Date "2019.09.14"]
[Round "8.22"]
[White "Jaskolka, Tomasz"]
[Black "Szolc, Grzegorz"]
[Result "1/2-1/2"]
[ECO "A46"]
[WhiteElo "2236"]
[BlackElo "2038"]
[Annotator "NA"]
[PlyCount "124"]
[EventDate "2019.09.07"]
[EventType "team-tourn"]
[EventCountry "POL"]
[SourceTitle "playchess.com"]
[Source "ChessBase"]
[SourceQuality "1"]
[TimeControl "40/5400+30:1800+30"]

1. d4 {[%emt 0:00:00]} Nf6 {[%emt 0:00:00]} 2. Nf3 {[%emt 0:00:00]} e6 {[%emt 0:00:00]} 3. e3 {[%emt 0:00:04]} b6 {[%emt 0:00:55]} 4. Bd3 {[%emt 0:00:22]} Bb7 {[%emt 0:01:29]} 5. Nbd2 {[%emt 0:00:54]} c5 {[%emt 0:03:36]} 6. O-O {[%emt 0:02:04]} d5 {[%emt 0:06:51]} 7. b3 {[%emt 0:01:02]} Be7 {[%emt 0:01:41]} 8. Bb2 {[%emt 0:00:23]} O-O {[%emt 0:00:35]} 9. Ne5 {[%emt 0:05:08]} Ne4 {[%emt 0:14:43]} 10. f3 {[%emt 0:05:10]} Nxd2 {[%emt 0:03:59]} 11. Qxd2 {[%emt 0:00:07]} f6 12. Ng4 {[%emt 0:00:18]} Nc6 {[%emt 0:15:27]} 13. c3 {[%emt 0:06:45]} f5 {[%emt 0:13:29]} 14. Nf2 {[%emt 0:06:17]} a5 {[%emt 0:01:08]} 15. Rfe1 {[%emt 0:16:07]} Ba6 {[%emt 0:06:42]} 16. Bxa6 {[%emt 0:10:12]} Rxa6 {[%emt 0:00:07]} 17. e4 {[%emt 0:07:56]} fxe4 {[%emt 0:11:05]} 18. fxe4 {[%emt 0:00:29]} Ra7 {[%emt 0:00:32]} 19. Qe2 {[%emt 0:08:19]} Kh8 {[%emt 0:03:01]} 20. Nd3 {[%emt 0:03:56]} cxd4 {[%emt 0:04:44]} 21. cxd4 {[%emt 0:00:16]} Bf6 {[%emt 0:01:12]} 22. e5 {[%emt 0:05:34]} Bg5 {[%emt 0:01:05]} 23. Rf1 {[%emt 0:08:21]} Raf7 {[%emt 0:01:19]} 24. Rxf7 {[%emt 0:02:22]} Rxf7 {[%emt 0:00:02]} 25. Bc1 {[%emt 0:03:10]} Nxd4 {[%emt 0:04:54]} 26. Qg4 {[%emt 0:00:24]} Bxc1 {[%emt 0:00:14]} 27. Rxc1 {[%emt 0:00:03]} Nf5 {[%emt 0:00:15]} 28. Nf4 {[%emt 0:01:48]} Qd7 {[%emt 0:03:18]} 29. Qg5 {[%emt 0:01:57]} Ne7 {[%emt 0:01:09]} 30. Ne2 {[%emt 0:04:12]} h6 {[%emt 0:00:53]} 31. Qe3 {[%emt 0:00:26]} b5 {[%emt 0:00:27]} 32. Qc5 {[%emt 0:00:45]} Ng6 {[%emt 0:00:34]} 33. Nd4 {[%emt 0:00:45]} Nxe5 {[%emt 0:00:29]} 34. Qc8+ {[%emt 0:00:26]} Kh7 {[%emt 0:00:33]} 35. Nxe6 {[%emt 0:00:56]} Qxc8 {[%emt 0:00:29]} 36. Rxc8 {[%emt 0:00:02]} Kg6 {[%emt 0:00:28]} 37. Rc5 {[%emt 0:00:50]} Kf5 {[%emt 0:00:31]} 38. Nd4+ {[%emt 0:00:31]} Ke4 {[%emt 0:00:23]} 39. Nxb5 {[%emt 0:00:15]} Rd7 {[%emt 0:00:35]} 40. Nc3+ {[%emt 0:00:00]} Kd4 {[%emt 0:00:00]} 41. Na4 {[%emt 0:02:44]} Nd3 {[%emt 0:08:01]} 42. Rxa5 {[%emt 0:03:14]} Rc7 {[%emt 0:01:47]} 43. h4 {[%emt 0:02:27]} Nf4 {[%emt 0:05:52]} 44. g3 {[%emt 0:06:50]} Ne2+ {[%emt 0:05:34]} 45. Kf2 {[%emt 0:02:56]} Rc2 {[%emt 0:00:55]} 46. Kf3 {[%emt 0:03:44]} Rxa2 {[%emt 0:02:55]} 47. Ra7 {[%emt 0:01:23]} g5 {[%emt 0:02:53]} 48. h5 {[%emt 0:05:39]} Nc1 {[%emt 0:02:49]} 49. Rh7 {[%emt 0:02:47]} Nxb3 {[%emt 0:02:01]} 50. Nb6 {[%emt 0:00:07]} Nd2+ {[%emt 0:00:48]} 51. Kg4 {[%emt 0:00:34]} Ne4 {[%emt 0:01:05]} 52. Rxh6 {[%emt 0:01:11]} Ra3 {[%emt 0:00:36]} 53. Rc6 {[%emt 0:01:11]} Rxg3+ {[%emt 0:00:42]} 54. Kf5 {[%emt 0:00:03]} Rf3+ {[%emt 0:00:49]} 55. Kg6 {[%emt 0:00:15]} g4 {[%emt 0:00:39]} 56. h6 {[%emt 0:00:55]} Rh3 {[%emt 0:00:55]} 57. Rc1 {[%emt 0:02:08]} g3 {[%emt 0:00:33]} 58. Rd1+ {[%emt 0:01:11]} Kc5 {[%emt 0:00:40]} 59. Nxd5 {[%emt 0:00:54]} g2 {[%emt 0:00:24]} 60. h7 {[%emt 0:00:32]} Rh1 {[%emt 0:00:31]} 61. Rg1 {[%emt 0:00:16]} Kxd5 {[%emt 0:00:34]} 62. Rxg2 {[%emt 0:00:32]} Nf6 {[%emt 0:00:30]} 1/2-1/2